fUST/lending_fUST_20241120
["ID","MTS","AMOUNT","RATE_DAILY","PERIOD"]
[342743026,1732097438900,-3036.20727107,0.00021817,2]
[342743027,1732097438910,-315.51172162,0.00021886,2]
[342743028,1732097438919,-3000.0,0.000219,2]
[342743029,1732097438928,-379.51,0.00021907,3]
[342743030,1732097438937,-189.76,0.00021907,3]
[342743031,1732097438946,-569.28,0.00021907,3]
[342743032,1732097438957,-3000.0,0.0002191,2]
[342743033,1732097438966,-162.03666646,0.00021916,2]
[342743034,1732097438975,-160.71405468,0.00021916,2]
[342743035,1732097438986,-898.33018086,0.00021917,2]
[342743036,1732097438997,-151.0,0.00021917,2]
[342743037,1732097439006,-500.0,0.00021917,7]
[342743038,1732097439015,-578.86405768,0.00021917,7]
[342743039,1732097439024,-500.80672594,0.00021917,7]
[342743040,1732097439033,-500.0,0.00021917,7]
[342743041,1732097439042,-500.0,0.00021917,7]
[342743042,1732097439051,-151.0,0.00021917,2]
[342743043,1732097439060,-500.0,0.00021917,7]
[342743044,1732097439069,-500.0,0.00021917,7]
[342743045,1732097439078,-500.0,0.00021917,7]
[342743046,1732097439088,-555.30793289,0.00021917,7]
[342743047,1732097439098,-441.71861684,0.00021917,7]
[342743048,1732097439107,-152.197028,0.00021917,2]
[342743049,1732097439116,-500.0,0.00021917,7]
[342743050,1732097439126,-617.62915594,0.00021917,7]
[342743051,1732097439135,-500.47876774,0.00021917,5]
[342743052,1732097439144,-151.0,0.00021917,2]
[342743053,1732097439154,-151.0,0.00021917,2]
[342743054,1732097439164,-172.95160905,0.00021917,7]
[342743055,1732097439174,-504.26225017,0.00021917,7]
[342743056,1732097439184,-505.89233801,0.00021917,7]
[342743057,1732097439193,-500.0,0.00021917,7]
[342743058,1732097439202,-500.0,0.00021917,7]
[342743059,1732097439212,-151.0,0.00021917,2]
[342743060,1732097439221,-500.0,0.00021917,7]
[342743061,1732097439231,-500.0,0.00021917,7]
[342743062,1732097439246,-500.0,0.00021917,7]
[342743063,1732097439255,-500.0,0.00021917,7]
[342743064,1732097439264,-501.46028098,0.00021917,7]
[342743065,1732097439273,-500.0,0.00021917,7]
[342743066,1732097439283,-500.0,0.00021917,7]
[342743067,1732097439297,-458.92103715,0.00021917,7]
[342743068,1732097439307,-500.0,0.00021917,7]
[342743069,1732097439317,-500.0,0.00021917,7]
[342743070,1732097439328,-500.0,0.00021917,7]
[342743071,1732097439339,-643.90958952,0.00021917,7]
[342743072,1732097439349,-500.0,0.00021917,7]
[342743073,1732097439358,-503.87463746,0.00021917,7]
[342743074,1732097439369,-508.7574649,0.00021917,7]
[342743075,1732097439380,-500.0,0.00021917,7]
[342743076,1732097439390,-395.97344048,0.00021917,7]
[342743077,1732097439399,-500.0,0.00021917,7]
[342743078,1732097439409,-1000.0,0.00021917,2]
[342743079,1732097439418,-500.0,0.00021917,7]
[342743080,1732097439427,-585.97026003,0.00021917,7]
[342743081,1732097439436,-507.58454806,0.00021917,7]
[342743082,1732097439446,-500.0,0.00021917,7]
[342743083,1732097439455,-500.0,0.00021917,7]
[342743084,1732097439464,-500.0,0.00021917,7]
[342743085,1732097439473,-251.98251777,0.00021917,7]
[342743086,1732097439511,-250.46378281,0.00021917,7]
[342743087,1732097439521,-177.66262691,0.00021917,7]
[342743088,1732097439530,-592.66,0.00021917,7]
[342743089,1732097439539,-500.0,0.00021917,7]
[342743090,1732097439549,-700.295858,0.00021917,2]
[342743091,1732097439558,-700.295858,0.00021917,2]
[342743092,1732097439568,-700.295858,0.00021917,2]
[342743093,1732097439577,-700.295858,0.00021917,2]
[342743094,1732097439589,-700.295858,0.00021917,2]
[342743095,1732097439602,-700.295858,0.00021917,2]
[342743096,1732097439614,-500.0,0.00021917,7]
[342743097,1732097439624,-500.0,0.00021917,7]
[342743098,1732097439634,-566.13912296,0.00021917,7]
[342743099,1732097439644,-500.0,0.00021917,7]
[342743100,1732097439655,-262.041729,0.00021917,2]
[342743101,1732097439665,-262.041729,0.00021917,2]
[342743102,1732097439675,-262.041729,0.00021917,2]
[342743103,1732097439684,-262.041729,0.00021917,2]
[342743104,1732097439694,-500.0,0.00021917,7]
[342743105,1732097439703,-262.041729,0.00021917,2]
[342743106,1732097439713,-262.041729,0.00021917,2]
[342743107,1732097439723,-500.0,0.00021917,7]
[342743108,1732097439732,-521.26,0.00021917,7]
[342743109,1732097439743,-202.78894532,0.00021917,7]
[342743110,1732097439756,-329.47105468,0.00021917,7]
[342743111,1732097439765,-500.0,0.00021917,7]
[342743112,1732097439774,-500.0,0.00021917,7]
[342743113,1732097439784,-301.822448,0.00021917,2]
[342743114,1732097439854,-301.822448,0.00021917,2]
[342743115,1732097439864,-301.822448,0.00021917,2]
[342743116,1732097439873,-301.822448,0.00021917,2]
[342743117,1732097439883,-301.822448,0.00021917,2]
[342743118,1732097439893,-301.822448,0.00021917,2]
[342743119,1732097439904,-500.0,0.00021917,7]
[342743120,1732097439914,-542.80123359,0.00021917,7]
[342743121,1732097439924,-500.0,0.00021917,7]
[342743122,1732097439934,-204.76207975,0.00021917,7]
[342743188,1732097443897,-295.23792025,0.00021917,7]
[342743189,1732097443907,-503.76763747,0.00021917,7]
[342743190,1732097443916,-500.0,0.00021917,7]
[342743192,1732097443925,-500.0,0.00021917,7]
[342743194,1732097443935,-256.89444228,0.00021917,7]
[342743196,1732097443948,-243.10555772,0.00021917,7]
[342743198,1732097443957,-500.0,0.00021917,7]
[342743199,1732097443966,-500.0,0.00021917,7]
[342743200,1732097443975,-500.0,0.00021917,7]
[342743201,1732097443985,-617.93799901,0.00021917,7]
[342743202,1732097443996,-472.86259286,0.00021917,7]
[342743203,1732097444076,-27.13740714,0.00021917,7]
[342743204,1732097444086,-500.0,0.00021917,7]
[342743205,1732097444096,-500.0,0.00021917,7]
[342743206,1732097444106,-500.0,0.00021917,7]
[342743207,1732097444115,-2193.082577,0.00021917,2]
[342743208,1732097444124,-2193.082577,0.00021917,2]
[342743209,1732097444133,-2129.51143499,0.00021917,2]
[342743210,1732097444156,-63.57114201,0.00021917,2]
[342743211,1732097444165,-2193.082577,0.00021917,2]
[342743212,1732097444175,-2013.21709055,0.00021917,2]
[342743213,1732097444187,-179.86548645,0.00021917,2]
[342743214,1732097444196,-2193.082577,0.00021917,2]
[342743215,1732097444205,-500.0,0.00021917,7]
[342743216,1732097444214,-500.0,0.00021917,7]
[342743217,1732097444224,-500.0,0.00021917,7]
[342743218,1732097444233,-500.0,0.00021917,7]
[342743219,1732097444244,-500.0,0.00021917,7]
[342743220,1732097444254,-500.0,0.00021917,7]
[342743221,1732097444263,-500.0,0.00021917,7]
[342743222,1732097444273,-151.0,0.00021917,2]
[342743223,1732097444282,-151.0,0.00021917,2]
[342743224,1732097444293,-151.0,0.00021917,2]
[342743225,1732097444303,-500.0,0.00021917,7]
[342743226,1732097444312,-500.0,0.00021917,7]
[342743227,1732097444321,-500.0,0.00021917,7]
[342743228,1732097444330,-500.0,0.00021917,7]
[342743229,1732097444339,-500.0,0.00021917,7]
[342743230,1732097444348,-500.0,0.00021917,7]
[342743231,1732097444357,-297.61024396,0.00021917,7]
[342743232,1732097444367,-500.0,0.00021917,7]
[342743233,1732097444376,-500.0,0.00021917,7]
[342743234,1732097444385,-500.0,0.00021917,7]
[342743235,1732097444394,-777.94,0.00021917,7]
[342743236,1732097444403,-500.0,0.00021917,7]
[342743237,1732097444412,-500.0,0.00021917,7]
[342743238,1732097444421,-500.0,0.00021917,7]
[342743239,1732097444430,-500.0,0.00021917,7]
[342743240,1732097444439,-610.64,0.00021917,7]
[342743241,1732097444449,-500.0,0.00021917,7]
[342743242,1732097444458,-500.0,0.00021917,2]
[342743243,1732097444467,-500.0,0.00021917,7]
[342743244,1732097444477,-500.0,0.00021917,7]
[342743245,1732097444486,-500.0,0.00021917,7]
[342743246,1732097444498,-500.0,0.00021917,7]
[342743247,1732097444517,-500.0,0.00021917,7]
[342743248,1732097444533,-500.0,0.00021917,7]
[342743249,1732097444552,-500.0,0.00021917,7]
[342743250,1732097444573,-535.57999849,0.00021917,7]
[342743251,1732097444591,-501.69596284,0.00021917,7]
[342743252,1732097444610,-252.5692559,0.00021917,7]
[342743253,1732097444626,-500.0,0.00021917,7]
[342743254,1732097444640,-500.0,0.00021917,7]
[342743255,1732097444658,-501.77246701,0.00021917,7]
[342743256,1732097444676,-500.0,0.00021917,7]
[342743257,1732097444695,-995.68,0.00021917,7]
[342743258,1732097444707,-500.0,0.00021917,7]
[342743259,1732097444727,-500.0,0.00021917,7]
[342743260,1732097444741,-500.0,0.00021917,7]
[342743261,1732097444756,-500.0,0.00021917,7]
[342743262,1732097444771,-326.521614,0.00021917,2]
[342743263,1732097444785,-627.08604709,0.00021917,7]
[342743264,1732097444800,-326.521614,0.00021917,2]
[342743265,1732097444814,-326.521614,0.00021917,2]
[342743266,1732097444828,-500.0,0.00021917,7]
[342743267,1732097444844,-500.0,0.00021917,7]
[342743268,1732097444863,-500.0,0.00021917,7]
[342743269,1732097444881,-326.521614,0.00021917,2]
[342743270,1732097444895,-151.0,0.00021917,2]
[342743271,1732097444910,-326.521614,0.00021917,2]
[342743272,1732097444924,-500.0,0.00021917,7]
[342743273,1732097444940,-500.0,0.00021917,7]
[342743274,1732097444955,-326.521614,0.00021917,2]
[342743275,1732097444969,-151.0,0.00021917,2]
[342743276,1732097444982,-151.0,0.00021917,2]
[342743277,1732097444998,-151.0,0.00021917,2]
[342743278,1732097445013,-297.893651,0.00021917,2]
[342743279,1732097445028,-507.75600839,0.00021917,7]
[342743280,1732097445042,-500.0,0.00021917,7]
[342743281,1732097445056,-500.0,0.00021917,7]
[342743282,1732097445070,-163.74595757,0.00021917,7]
[342743283,1732097445083,-500.0,0.00021917,7]
[342743284,1732097445099,-500.0,0.00021917,7]
[342743285,1732097445112,-500.0,0.00021917,7]
[342743286,1732097445125,-151.0,0.00021917,2]
[342743287,1732097445140,-151.0,0.00021917,2]
[342743288,1732097445154,-960.9,0.00021917,7]
[342743289,1732097445166,-500.0,0.00021917,7]
[342743290,1732097445176,-151.0,0.00021917,2]
[342743291,1732097445289,-151.0,0.00021917,2]
[342743292,1732097445302,-151.0,0.00021917,2]
[342743293,1732097445311,-151.0,0.00021917,2]
[342743294,1732097445321,-500.0,0.00021917,7]
[342743295,1732097445330,-500.0,0.00021917,7]
[342743296,1732097445341,-500.0,0.00021917,7]
[342743297,1732097445350,-500.0,0.00021917,7]
[342743298,1732097445360,-500.0,0.00021917,7]
[342743299,1732097445370,-500.0,0.00021917,7]
[342743300,1732097445380,-500.0,0.00021917,7]
[342743301,1732097445389,-500.0,0.00021917,7]
[342743302,1732097445398,-334.18772562,0.00021917,7]
[342743303,1732097445407,-500.0,0.00021917,7]
[342743304,1732097445416,-500.0,0.00021917,7]
[342743305,1732097445425,-500.0,0.00021917,7]
[342743306,1732097445435,-500.0,0.00021917,7]
[342743307,1732097445444,-500.0,0.00021917,7]
[342743308,1732097445453,-500.0,0.00021917,7]
[342743309,1732097445463,-500.0,0.00021917,7]
[342743310,1732097445472,-500.0,0.00021917,7]
[342743311,1732097445481,-500.0,0.00021917,7]
[342743312,1732097445491,-500.0,0.00021917,7]
[342743313,1732097445501,-1539.31,0.00021917,7]
[342743314,1732097445510,-500.0,0.00021917,7]
[342743315,1732097445519,-616.05,0.00021917,7]
[342743316,1732097445529,-500.0,0.00021917,7]
[342743317,1732097445538,-500.0,0.00021917,7]
[342743318,1732097445547,-500.0,0.00021917,7]
[342743319,1732097445556,-500.0,0.00021917,7]
[342743320,1732097445566,-503.51413338,0.00021917,7]
[342743321,1732097445575,-500.0,0.00021917,7]
[342743322,1732097445584,-500.0,0.00021917,7]
[342743323,1732097445593,-948.39,0.00021917,7]
[342743324,1732097445603,-594.98,0.00021917,7]
[342743325,1732097445612,-500.0,0.00021917,7]
[342743326,1732097445621,-368.287571,0.00021917,2]
[342743327,1732097445631,-368.287571,0.00021917,2]
[342743328,1732097445640,-368.287571,0.00021917,2]
[342743329,1732097445650,-368.287571,0.00021917,2]
[342743330,1732097445659,-500.0,0.00021917,7]
[342743331,1732097445668,-500.0,0.00021917,7]
[342743332,1732097445678,-500.0,0.00021917,7]
[342743333,1732097445687,-368.287571,0.00021917,2]
[342743334,1732097445696,-368.287571,0.00021917,2]
[342743335,1732097445704,-368.287571,0.00021917,2]
[342743336,1732097445714,-368.287571,0.00021917,2]
[342743337,1732097445724,-544.4,0.00021917,7]
[342743338,1732097445733,-500.0,0.00021917,7]
[342743339,1732097445748,-500.0,0.00021917,7]
[342743340,1732097445757,-154.021445,0.00021917,2]
[342743341,1732097445766,-500.0,0.00021917,7]
[342743342,1732097445775,-562.19732659,0.00021917,7]
[342743343,1732097445783,-500.0,0.00021917,7]
[342743344,1732097445793,-500.0,0.00021917,7]
[342743345,1732097445801,-506.45099897,0.00021917,7]
[342743346,1732097445811,-409.58284247,0.00021917,7]
[342743347,1732097445820,-500.0,0.00021917,7]
[342743348,1732097445830,-118.40594027,0.00021917,7]
[342743349,1732097445849,-381.59405973,0.00021917,7]
[342743350,1732097445858,-757.09,0.00021917,7]
[342743351,1732097445867,-564.84,0.00021917,7]
[342743352,1732097445876,-500.0,0.00021917,7]
[342743353,1732097445886,-500.0,0.00021917,7]
[342743354,1732097445895,-500.0,0.00021917,7]
[342743355,1732097445904,-500.0,0.00021917,7]
[342743356,1732097445914,-560.64239488,0.00021917,7]
[342743357,1732097445924,-500.0,0.00021917,7]
[342743358,1732097445933,-500.0,0.00021917,7]
[342743359,1732097445942,-162.50969933,0.00021917,7]
[342743360,1732097445951,-500.0,0.00021917,7]
[342743361,1732097445960,-500.0,0.00021917,7]
[342743362,1732097445969,-500.0,0.00021917,7]
[342743363,1732097445978,-500.0,0.00021917,7]
[342743364,1732097445987,-600.13,0.00021917,7]
[342743365,1732097445998,-500.0,0.00021917,7]
[342743366,1732097446007,-500.0,0.00021917,7]
[342743367,1732097446016,-500.0,0.00021917,7]
[342743368,1732097446026,-500.0,0.00021917,7]
[342743369,1732097446035,-500.0,0.00021917,7]
[342743370,1732097446044,-500.0,0.00021917,7]
[342743371,1732097446053,-500.0,0.00021917,7]
[342743372,1732097446062,-500.0,0.00021917,7]
[342743374,1732097446072,-30.94112229,0.00021917,7]
[342743395,1732097446769,-469.05887771,0.00021917,7]
[342743397,1732097446779,-503.704228,0.00021917,7]
[342743398,1732097446788,-524.81603838,0.00021917,7]
[342743399,1732097446797,-500.0,0.00021917,7]
[342743400,1732097446807,-500.0,0.00021917,7]
[342743401,1732097446816,-500.0,0.00021917,7]
[342743402,1732097446825,-843.79,0.00021917,7]
[342743403,1732097446833,-555.63658,0.00021917,2]
[342743404,1732097446842,-555.63658,0.00021917,2]
[342743405,1732097446851,-555.63658,0.00021917,2]
[342743406,1732097446860,-500.0,0.00021917,7]
[342743407,1732097446870,-500.0,0.00021917,7]
[342743408,1732097446879,-500.0,0.00021917,7]
[342743409,1732097446888,-500.0,0.00021917,7]
[342743410,1732097446897,-503.11859019,0.00021917,7]
[342743411,1732097446908,-500.0,0.00021917,7]
[342743412,1732097446917,-500.0,0.00021917,7]
[342743413,1732097446927,-500.0,0.00021917,7]
[342743414,1732097446936,-555.63658,0.00021917,2]
[342743415,1732097446946,-500.0,0.00021917,7]
[342743416,1732097446956,-555.63658,0.00021917,2]
[342743417,1732097446966,-500.0,0.00021917,7]
[342743418,1732097446976,-500.0,0.00021917,7]
[342743419,1732097446985,-500.0,0.00021917,7]
[342743420,1732097446996,-555.63658,0.00021917,2]
[342743421,1732097447005,-500.0,0.00021917,7]
[342743422,1732097447083,-500.0,0.00021917,7]
[342743423,1732097447093,-500.0,0.00021917,7]
[342743424,1732097447102,-500.0,0.00021917,7]
[342743425,1732097447111,-416.05637727,0.00021917,7]
[342743435,1732097601899,160.0,0.00025,120]
[342743437,1732097631785,180.0,0.00026,120]
[342743450,1732097872530,195.372594,0.00013973,2]
[342743486,1732098606063,185.603964,0.00013973,2]
[342743507,1732098632080,-185.603964,0.00020447,2]
[342743508,1732098632091,-568.0,0.0002058,2]
[342743509,1732098632101,-300.0,0.00020913,2]
[342743510,1732098632110,-300.0,0.00020913,2]
[342743511,1732098632121,-24900.0,0.00020914,2]
[342743512,1732098632130,-189.30703298,0.00021817,2]
[342743513,1732098632140,-3933.16749572,0.00021817,2]
[342743514,1732098632151,-189.30703297,0.00021886,2]
[342743515,1732098632161,-244.527,0.00021907,2]
[342743516,1732098632171,-189.75,0.00021907,3]
[342743517,1732098632181,-838.59326805,0.00021916,2]
[342743518,1732098632191,-406.2241439,0.00021916,2]
[342743519,1732098632202,-500.0,0.00021916,2]
[342743520,1732098632212,-500.0,0.00021916,2]
[342743521,1732098632221,-500.0,0.00021916,2]
[342743522,1732098632231,-500.0,0.00021916,2]
[342743523,1732098632246,-487.35539382,0.00021916,2]
[342743524,1732098632255,-156.02164686,0.00021916,2]
[342743525,1732098632264,-500.0,0.00021916,2]
[342743526,1732098632274,-500.0,0.00021916,2]
[342743527,1732098632284,-620.0,0.00021916,2]
[342743528,1732098632294,-500.0,0.00021916,2]
[342743529,1732098632303,-250.0,0.00021916,2]
[342743531,1732098632313,-249.32391077,0.00021916,2]
[342743532,1732098632322,-500.0,0.00021916,2]
[342743534,1732098632332,-500.0,0.00021916,2]
[342743536,1732098632341,-390.82746045,0.00021916,2]
[342743538,1732098632351,-500.0,0.00021916,2]
[342743540,1732098632361,-500.0,0.00021916,2]
[342743542,1732098632371,-500.0,0.00021916,2]
[342743544,1732098632380,-500.0,0.00021916,2]
[342743546,1732098632390,-500.0,0.00021916,2]
[342743547,1732098632400,-500.0,0.00021916,2]
[342743549,1732098632410,-500.0,0.00021916,2]
[342743550,1732098632419,-500.0,0.00021916,2]
[342743551,1732098632428,-603.17565364,0.00021916,2]
[342743553,1732098632437,-500.0,0.00021916,2]
[342743554,1732098632446,-500.0,0.00021916,2]
[342743555,1732098632456,-600.0,0.00021916,2]
[342743556,1732098632465,-151.0,0.00021917,2]
[342743557,1732098632475,-231.907131,0.00021917,2]
[342743558,1732098632487,-152.774346,0.00021917,2]
[342743559,1732098632496,-239.255525,0.00021917,2]
[342743560,1732098632606,-239.255525,0.00021917,2]
[342743561,1732098632621,-239.255525,0.00021917,2]
[342743562,1732098632631,-239.255525,0.00021917,2]
[342743563,1732098632641,-239.255525,0.00021917,2]
[342743564,1732098632650,-239.255525,0.00021917,2]
[342743565,1732098632660,-239.255525,0.00021917,2]
[342743566,1732098632669,-239.255525,0.00021917,2]
[342743567,1732098632679,-151.0,0.00021917,2]
[342743568,1732098632689,-151.0,0.00021917,2]
[342743569,1732098632699,-156.281402,0.00021917,2]
[342743570,1732098632712,-151.982572,0.00021917,2]
[342743571,1732098632721,-500.0,0.00021917,7]
[342743572,1732098632731,-151.0,0.00021917,2]
[342743573,1732098632745,-151.0,0.00021917,2]
[342743574,1732098632755,-151.0,0.00021917,2]
[342743575,1732098632764,-151.0,0.00021917,2]
[342743576,1732098632775,-151.0,0.00021917,2]
[342743577,1732098632786,-151.0,0.00021917,2]
[342743578,1732098632799,-151.0,0.00021917,2]
[342743579,1732098632809,-151.0,0.00021917,2]
[342743580,1732098632819,-500.0,0.00021917,7]
[342743581,1732098632830,-500.0,0.00021917,7]
[342743582,1732098632839,-151.0,0.00021917,2]
[342743583,1732098632849,-151.0,0.00021917,2]
[342743584,1732098632859,-500.0,0.00021917,7]
[342743585,1732098632872,-500.0,0.00021917,7]
[342743586,1732098632886,-500.0,0.00021917,7]
[342743587,1732098632895,-500.0,0.00021917,7]
[342743588,1732098632906,-502.97453698,0.00021917,7]
[342743589,1732098632916,-502.55508459,0.00021917,7]
[342743590,1732098632926,-500.0,0.00021917,7]
[342743591,1732098632937,-505.16856385,0.00021917,7]
[342743592,1732098632948,-500.0,0.00021917,7]
[342743593,1732098632958,-500.0,0.00021917,7]
[342743594,1732098632968,-334.5754147,0.00021917,7]
[342743595,1732098632979,-473.55281882,0.00021917,7]
[342743596,1732098632991,-500.0,0.00021917,7]
[342743597,1732098633001,-500.0,0.00021917,7]
[342743598,1732098633011,-200.0,0.00021917,7]
[342743599,1732098633022,-635.74,0.00021917,7]
[342743600,1732098633033,-500.0,0.00021917,7]
[342743601,1732098633043,-502.78215178,0.00021917,7]
[342743602,1732098633053,-500.0,0.00021917,7]
[342743603,1732098633064,-500.0,0.00021917,7]
[342743604,1732098633075,-500.0,0.00021917,7]
[342743605,1732098633085,-500.0,0.00021917,7]
[342743606,1732098633096,-500.0,0.00021917,7]
[342743607,1732098633106,-584.74753399,0.00021917,7]
[342743608,1732098633116,-500.0,0.00021917,7]
[342743609,1732098633125,-490.2071,0.00021917,2]
[342743610,1732098633135,-490.2071,0.00021917,2]
[342743611,1732098633145,-490.2071,0.00021917,2]
[342743612,1732098633155,-158.4662748,0.00021917,7]
[342743613,1732098633165,-490.2071,0.00021917,2]
[342743614,1732098633175,-490.2071,0.00021917,2]
[342743615,1732098633184,-490.2071,0.00021917,2]
[342743616,1732098633194,-517.23391831,0.00021917,7]
[342743617,1732098633203,-500.0,0.00021917,7]
[342743618,1732098633213,-616.79,0.00021917,7]
[342743619,1732098633223,-158.03443224,0.00021917,7]
[342743620,1732098633232,-500.0,0.00021917,7]
[342743621,1732098633245,-500.0,0.00021917,7]
[342743622,1732098633255,-598.40851425,0.00021917,7]
[342743623,1732098633265,-273.39119829,0.00021917,7]
[342743624,1732098633277,-500.0,0.00021917,7]
[342743625,1732098633287,-504.13314776,0.00021917,7]
[342743626,1732098633296,-500.0,0.00021917,7]
[342743627,1732098633307,-500.0,0.00021917,7]
[342743628,1732098633316,-500.0,0.00021917,7]
[342743629,1732098633326,-500.0,0.00021917,7]
[342743630,1732098633335,-500.0,0.00021917,7]
[342743631,1732098633345,-500.0,0.00021917,7]
[342743632,1732098633355,-500.0,0.00021917,7]
[342743633,1732098633365,-500.0,0.00021917,7]
[342743634,1732098633374,-500.0,0.00021917,7]
[342743635,1732098633384,-500.0,0.00021917,7]
[342743636,1732098633393,-500.0,0.00021917,7]
[342743637,1732098633403,-633.20490647,0.00021917,7]
[342743638,1732098633412,-500.0,0.00021917,7]
[342743639,1732098633421,-646.56604854,0.00021917,7]
[342743640,1732098633431,-500.0,0.00021917,7]
[342743641,1732098633441,-648.76,0.00021917,7]
[342743642,1732098633451,-560.08430861,0.00021917,7]
[342743643,1732098633460,-500.0,0.00021917,7]
[342743644,1732098633470,-506.89976334,0.00021917,7]
[342743645,1732098633480,-837.88,0.00021917,7]
[342743646,1732098633494,-228.51063151,0.00021917,7]
[342743647,1732098633504,-500.0,0.00021917,7]
[342743648,1732098633513,-500.0,0.00021917,7]
[342743649,1732098633522,-500.0,0.00021917,7]
[342743650,1732098633532,-500.0,0.00021917,7]
[342743651,1732098633542,-500.0,0.00021917,7]
[342743652,1732098633552,-614.76,0.00021917,7]
[342743653,1732098633561,-1535.157804,0.00021917,2]
[342743654,1732098633571,-1535.157804,0.00021917,2]
[342743655,1732098633580,-1535.157804,0.00021917,2]
[342743656,1732098633589,-500.0,0.00021917,7]
[342743657,1732098633599,-500.0,0.00021917,7]
[342743658,1732098633608,-502.51980216,0.00021917,7]
[342743659,1732098633617,-1535.157804,0.00021917,2]
[342743660,1732098633627,-627.24259559,0.00021917,7]
[342743661,1732098633636,-501.72179566,0.00021917,7]
[342743662,1732098633646,-1535.157804,0.00021917,2]
[342743663,1732098633655,-1535.157804,0.00021917,2]
[342743664,1732098633665,-504.92905195,0.00021917,7]
[342743665,1732098633675,-500.0,0.00021917,7]
[342743666,1732098633684,-500.0,0.00021917,7]
[342743667,1732098633694,-500.0,0.00021917,7]
[342743668,1732098633703,-553.46,0.00021917,7]
[342743669,1732098633714,-500.0,0.00021917,7]
[342743670,1732098633724,-500.0,0.00021917,7]
[342743671,1732098633734,-500.0,0.00021917,7]
[342743672,1732098633746,-500.0,0.00021917,7]
[342743673,1732098633756,-500.0,0.00021917,7]
[342743674,1732098633766,-516.30313473,0.00021917,7]
[342743675,1732098633775,-1142.87,0.00021917,7]
[342743676,1732098633789,-500.0,0.00021917,7]
[342743677,1732098633798,-501.0605518,0.00021917,7]
[342743678,1732098633808,-503.1820669,0.00021917,7]
[342743679,1732098633883,-500.0,0.00021917,7]
[342743680,1732098633892,-500.0,0.00021917,7]
[342743681,1732098633902,-500.0,0.00021917,7]
[342743682,1732098633911,-500.0,0.00021917,7]
[342743683,1732098633921,-500.0,0.00021917,7]
[342743684,1732098633930,-500.0,0.00021917,7]
[342743685,1732098633940,-500.0,0.00021917,7]
[342743686,1732098633950,-500.0,0.00021917,7]
[342743687,1732098633960,-500.0,0.00021917,7]
[342743688,1732098633970,-500.0,0.00021917,7]
[342743689,1732098633980,-514.31470326,0.00021917,7]
[342743690,1732098633991,-500.0,0.00021917,7]
[342743691,1732098634001,-500.0,0.00021917,7]
[342743692,1732098634011,-500.0,0.00021917,7]
[342743693,1732098634020,-500.0,0.00021917,7]
[342743694,1732098634030,-500.0,0.00021917,7]
[342743695,1732098634040,-500.0,0.00021917,7]
[342743696,1732098634050,-500.0,0.00021917,7]
[342743697,1732098634060,-367.3675368,0.00021917,7]
[342743698,1732098634070,-500.0,0.00021917,7]
[342743699,1732098634087,-500.0,0.00021917,7]
[342743700,1732098634101,-500.0,0.00021917,7]
[342743701,1732098634111,-500.0,0.00021917,7]
[342743702,1732098634122,-500.0,0.00021917,7]
[342743703,1732098634132,-586.55,0.00021917,7]